Workbook

Sheet المجمع
A1: الشهر | B1: رئيس الوردية | C1: المجموعة | D1: اللون | E1: التاريخ | F1: مكان الكبس | G1: النوعية | H1: عدد الوارد انتاج | I1: عدد السليم | J1: تجربة | K1: عدد المقوس | L1: عدد الرايش | M1: عدد الكسر | N1: الكفاءة السليم | O1: كفاءة سليم محلي | P1: نسبة المقوس | Q1: نسبة الرايش | R1: نسبة الكسر | S1: نسبة هواء | T1: نسبة طائق | U1: نسبة دخان | V1: نسبة مهبط | W1: نسبة مقوس | X1: اجمالي النسب | Y1: اجمالي الكسر | Z1: هواء | AA1: طائق | AB1: دخان | AC1: مهبط | AD1: مقوس
E2: 2025-01-01 | F2: فرن 22 | G2: لوزة 5بوصة | H2: 139 | I2: 80 | J2: 14 | K2: 0 | L2: 0 | M2: 45 | N2: =I2/$H2 -> 0.5755395683 | O2: =J2/$H2 -> 0.1007194245 | P2: 0 | Q2: 0 | R2: 0.3237410072 | S2: =Z2/H2 -> 0 | T2: =AA2/H2 -> 0.2158273381 | U2: =AB2/H2 -> 0.02158273381 | V2: =AC2/H2 -> 0.02158273381 | W2: =AD2/H2 -> 0 | X2: =R2+O2+P2+N2+Q2 -> 1 | Y2: =SUM(Z2:AD2) -> 36 | AA2: 30 | AB2: 3 | AC2: 3
E3: 2025-01-01 | F3: مكبس رقم 1 | G3: دبوس 165 مضلع | H3: 142 | I3: 78 | J3: 14 | K3: 0 | L3: 0 | M3: 50 | N3: =I3/$H3 -> 0.5492957746 | O3: =J3/$H3 -> 0.0985915493 | P3: =K3/$H3 -> 0 | Q3: =L3/$H3 -> 0 | R3: =M3/$H3 -> 0.3521126761 | S3: =Z3/H3 -> 0.05633802817 | T3: =AA3/H3 -> 0.2253521127 | U3: =AB3/H3 -> 0.02816901408 | V3: =AC3/H3 -> 0 | W3: =AD3/H3 -> 0.007042253521 | X3: =R3+O3+P3+N3+Q3 -> 1 | Y3: =SUM(Z3:AD3) -> 45 | Z3: 8 | AA3: 32 | AB3: 4 | AD3: 1
E4: 2025-01-01 | F4: مكبس رقم 1 | G4: دبوس 175 مضلع | H4: 143 | I4: 87 | J4: 30 | K4: 0 | L4: 0 | M4: 26 | N4: 0.6083916084 | O4: 0.2097902098 | P4: 0 | Q4: 0 | R4: 0.1818181818 | S4: =Z4/H4 -> 0.006993006993 | T4: =AA4/H4 -> 0.02097902098 | U4: =AB4/H4 -> 0.05594405594 | V4: =AC4/H4 -> 0 | W4: =AD4/H4 -> 0 | X4: 1 | Y4: =SUM(Z4:AD4) -> 12 | Z4: 1 | AA4: 3 | AB4: 8 | AD4: 0
E5: 2025-01-02 | F5: مكبس رقم 1 | G5: دبوس 165 مضلع | H5: 409 | I5: 308 | J5: 29 | K5: 0 | L5: 0 | M5: 72 | N5: 0.7530562347 | O5: 0.07090464548 | P5: 0 | Q5: 0 | R5: 0.1760391198 | S5: =Z5/H5 -> 0.0488997555 | T5: =AA5/H5 -> 0 | U5: =AB5/H5 -> 0.0391198044 | V5: =AC5/H5 -> 0 | W5: =AD5/H5 -> 0.002444987775 | X5: 1 | Y5: =SUM(Z5:AD5) -> 37 | Z5: 20 | AB5: 16 | AD5: 1
E6: 2025-01-03 | F6: مكبس رقم 2 | G6: مربع م | H6: 800 | I6: 600 | J6: 10 | K6: 90 | L6: 0 | M6: 100 | N6: 0.75 | O6: 0.0125 | P6: 0.1125 | Q6: 0 | R6: 0.125 | T6: =AA6/H6 -> 0 | V6: =AC6/H6 -> 0 | X6: 1
E7: 2025-01-04 | F7: مكبس رقم 3 | G7: مكعب ك | H7: 64 | I7: 56 | J7: 0 | K7: 0 | L7: 0 | M7: 8 | N7: 0.875 | O7: 0 | P7: 0 | Q7: 0 | R7: 0.125 | S7: =Z7/H7 -> 0.0625 | T7: =AA7/H7 -> 0 | U7: =AB7/H7 -> 0 | V7: =AC7/H7 -> 0.03125 | W7: =AD7/H7 -> 0 | X7: 1 | Y7: =SUM(Z7:AD7) -> 6 | Z7: 4 | AC7: 2
E8: 2025-01-04 | F8: فرن 22 | G8: اسطوانة 23سم | H8: 114 | I8: 7 | J8: 105 | K8: 0 | L8: 0 | M8: 2 | N8: 0.06140350877 | O8: 0.9210526316 | P8: 0 | Q8: 0 | R8: 0.01754385965 | S8: =Z8/H8 -> 0 | T8: =AA8/H8 -> 0 | U8: =AB8/H8 -> 0 | V8: =AC8/H8 -> 0.01754385965 | W8: =AD8/H8 -> 0 | X8: 1 | Y8: =SUM(Z8:AD8) -> 2 | AC8: 2
E9: 2025-01-04 | F9: مكبس رقم 1 | G9: دبوس 165 مضلع | H9: 113 | I9: 78 | J9: 0 | K9: 0 | L9: 0 | M9: 35 | N9: 0.6902654867 | O9: 0 | P9: 0 | Q9: 0 | R9: 0.3097345133 | S9: =Z9/H9 -> 0.01769911504 | T9: =AA9/H9 -> 0.01769911504 | U9: =AB9/H9 -> 0.04424778761 | V9: =AC9/H9 -> 0 | W9: =AD9/H9 -> 0 | X9: 1 | Y9: =SUM(Z9:AD9) -> 9 | Z9: 2 | AA9: 2 | AB9: 5
E10: 2025-01-05 | F10: مكبس رقم 2 | G10: عامود زجاج | H10: 39 | I10: 23 | J10: 3 | K10: 0 | L10: 0 | M10: 13 | N10: 0.5897435897 | O10: 0.07692307692 | P10: 0 | Q10: 0 | R10: 0.3333333333 | S10: =Z10/H10 -> 0.07692307692 | T10: =AA10/H10 -> 0.02564102564 | U10: =AB10/H10 -> 0.1025641026 | V10: =AC10/H10 -> 0.05128205128 | W10: =AD10/H10 -> 0 | X10: 1 | Y10: =SUM(Z10:AD10) -> 10 | Z10: 3 | AA10: 1 | AB10: 4 | AC10: 2
E11: 2025-01-05 | F11: مكبس رقم 3 | G11: مكعب ص | H11: 20 | I11: 3 | J11: 1 | K11: 0 | L11: 0 | M11: 16 | N11: 0.15 | O11: 0.05 | P11: 0 | Q11: 0 | R11: 0.8 | S11: =Z11/H11 -> 0.2 | T11: =AA11/H11 -> 0.05 | U11: =AB11/H11 -> 0.1 | V11: =AC11/H11 -> 0 | W11: =AD11/H11 -> 0.25 | X11: 1 | Y11: =SUM(Z11:AD11) -> 12 | Z11: 4 | AA11: 1 | AB11: 2 | AD11: 5
E12: 2025-01-05 | F12: فرن 22 | G12: مشط هرمة | H12: 98 | I12: 94 | J12: 0 | K12: 0 | L12: 0 | M12: 4 | N12: 0.9591836735 | O12: 0 | P12: 0 | Q12: 0 | R12: 0.04081632653 | S12: =Z12/H12 -> 0.01020408163 | T12: =AA12/H12 -> 0.01020408163 | U12: =AB12/H12 -> 0 | V12: =AC12/H12 -> 0 | W12: =AD12/H12 -> 0 | X12: 1 | Y12: =SUM(Z12:AD12) -> 2 | Z12: 1 | AA12: 1

Sheet 1
A1: بداية فترة | B1: 2025-01-02 | S1: التاريخ | T1: التاريخ
A2: نهاية فترة | B2: 2025-01-02 | S2: =">="&B1 -> >=45659 | T2: ="<="&B2 -> <=45659
A4: التاريخ | B4: مكان الكبس | C4: النوعية | D4: عدد الوارد انتاج | E4: عدد السليم | F4: تجربة | G4: عدد المقوس | H4: عدد الرايش | I4: عدد الكسر | J4: الكفاءة السليم | K4: كفاءة سليم محلي | L4: نسبة المقوس | M4: نسبة الرايش | N4: نسبة الكسر | O4: نسبة هواء | P4: نسبة طائق | Q4: نسبة دخان | R4: نسبة مهبط | S4: نسبة مقوس
A5: 2025-01-02 | B5: مكبس رقم 1 | C5: دبوس 165 مضلع | D5: 409 | E5: 308 | F5: 29 | G5: 0 | H5: 0 | I5: 72 | J5: 0.7530562347 | K5: 0.07090464548 | L5: 0 | M5: 0 | N5: 0.1760391198 | O5: 0.0488997555 | P5: 0 | Q5: 0.0391198044 | R5: 0
